[Event "GER-ch Youth-U14 2022"]
[Site "Willingen"]
[Date "2022.06.05"]
[Round "2.14"]
[White "Mainka, Ingmar"]
[Black "Sauer, Tim"]
[Result "0-1"]
[ECO "B35"]
[WhiteElo "1427"]
[BlackElo "1769"]
[Annotator "NA RC COMBH"]
[PlyCount "117"]
[EventDate "2022.06.05"]
[EventType "swiss"]
[EventRounds "9"]
[EventCountry "GER"]
[SourceTitle "playchess.com"]
[Source "ChessBase"]
[SourceQuality "1"]
[TimeControl "40/4500+30:900+30"]

1. e4 {[%emt 0:00:00]} c5 {[%emt 0:00:00]} 2. Nf3 {[%emt 0:00:00]} g6 {[%emt 0:00:00]} 3. d4 {[%emt 0:00:00]} cxd4 {[%emt 0:00:00]} 4. Nxd4 {[%emt 0:00:00]} Bg7 {[%emt 0:00:00]} 5. Nc3 {[%emt 0:00:00]} Nc6 {[%emt 0:00:00]} 6. Be3 {[%emt 0:00:00]} Nf6 {[%emt 0:00:00]} 7. Bc4 {[%emt 0:00:00]} Qa5 {[%emt 0:00:00]} 8. O-O {[%emt 0:00:00]} O-O {[%emt 0:00:00]} 9. Bb3 {[%emt 0:00:00]} d6 {[%emt 0:00:00]} 10. f3 {[%emt 0:00:00]} Bd7 {[%emt 0:00:00]} 11. Qd2 {[%emt 0:00:00]} Rac8 {[%emt 0:00:00]} 12. Rad1 {[%emt 0:00:00]} Nxd4 {[%emt 0:00:00]} 13. Bxd4 {[%emt 0:00:00]} Rfe8 {[%emt 0:00:00]} 14. Nd5 {[%emt 0:00:00]} Qxd2 {[%emt 0:00:00]} 15. Rxd2 {[%emt 0:00:27]} Nxd5 {[%emt 0:00:00]} 16. exd5 {[%emt 0:03:13]} a6 {[%emt 0:00:00]} 17. Bxg7 {[%emt 0:00:56]} Kxg7 {[%emt 0:00:00]} 18. Rd4 {[%emt 0:01:57]} Rc5 {[%emt 0:00:00]} 19. Re1 {[%emt 0:01:58]} Kf6 {[%emt 0:00:07]} 20. c3 {[%emt 0:01:30]} b6 {[%emt 0:00:51]} 21. h4 {[%emt 0:14:39]} a5 {[%emt 0:06:37]} 22. g4 {[%emt 0:04:44]} h6 {[%emt 0:01:02]} 23. Rf4+ {[%emt 0:03:43]} Kg7 {[%emt 0:00:15]} 24. g5 {[%emt 0:00:34]} hxg5 {[%emt 0:00:09]} 25. hxg5 {[%emt 0:00:05]} b5 {[%emt 0:00:53]} 26. a3 {[%emt 0:00:38]} Bf5 {[%emt 0:02:28]} 27. Kg2 {[%emt 0:06:08]} f6 {[%emt 0:12:27]} 28. gxf6+ {[%emt 0:00:25]} Kxf6 {[%emt 0:00:39]} 29. c4 {[%emt 0:03:55]} Rb8 {[%emt 0:13:29]} 30. Re2 {[%emt 0:08:41]} Rb7 {[%emt 0:07:42]} 31. Kg3 {[%emt 0:01:56]} Kg7 {[%emt 0:05:48]} 32. Re3 {[%emt 0:04:22]} Kf6 {[%emt 0:08:32]} 33. Bc2 {[%emt 0:11:12]} Rxc4 {[%emt 0:05:03]} 34. Bxf5 {[%emt 0:00:26]} gxf5 {[%emt 0:00:22]} 35. Rb3 {[%emt 0:12:25]} Rc2 {[%emt 0:05:43]} 36. Re3 {[%emt 0:00:59]} Rxb2 {[%emt 0:12:53]} 37. Re6+ {[%emt 0:00:11]} Kg5 {[%emt 0:01:21]} 38. Rd4 {[%emt 0:01:49]} Rb3 {[%emt 0:02:16]} 39. Rd1 {[%emt 0:03:09]} f4+ {[%emt 0:02:26]} 40. Kg2 {[%emt 0:00:59]} Rxa3 {[%emt 0:02:09]} 41. Rg1 {[%emt 0:15:48]} Kf5 {[%emt 0:16:56]} 42. Rh6 {[%emt 0:04:06]} Ke5 {[%emt 0:00:48]} 43. Rd1 {[%emt 0:00:33]} Re3 {[%emt 0:00:32]} 44. Rh5+ {[%emt 0:00:00]} Kf6 {[%emt 0:00:00]} 45. Rh4 {[%emt 0:00:00]} Kf7 {[%emt 0:00:00]} 46. Rxf4+ {[%emt 0:00:00]} Ke8 {[%emt 0:00:00]} 47. Rh1 {[%emt 0:00:00]} Re5 {[%emt 0:00:00]} 48. Rh8+ {[%emt 0:00:00]} Kd7 {[%emt 0:00:00]} 49. Rd4 {[%emt 0:00:00]} b4 {[%emt 0:00:00]} 50. f4 {[%emt 0:00:00]} Rf5 {[%emt 0:00:00]} 51. Rh7 {[%emt 0:00:00]} b3 {[%emt 0:00:00]} 52. Re4 {[%emt 0:00:00]} Ke8 {[%emt 0:00:00]} 53. Rh8+ {[%emt 0:00:00]} Kf7 {[%emt 0:00:00]} 54. Rh7+ {[%emt 0:00:00]} Kf8 {[%emt 0:00:00]} 55. Rc4 {[%emt 0:00:00]} Kg8 {[%emt 0:00:00]} 56. Rh3 {[%emt 0:00:00]} b2 {[%emt 0:00:00]} 57. Rc8+ {[%emt 0:00:00]} Rf8 {[%emt 0:00:00]} 58. Rg3+ {[%emt 0:00:00]} Kf7 {[%emt 0:00:00]} 59. Re3 0-1

[Event "GER-ch Youth-U14 2022"]
[Site "Willingen"]
[Date "2022.06.05"]
[Round "2.15"]
[White "Eichhorn, Valentin"]
[Black "Sommer, Justus"]
[Result "0-1"]
[ECO "D00"]
[WhiteElo "1565"]
[BlackElo "1868"]
[Annotator "NA RC COMBH"]
[PlyCount "94"]
[EventDate "2022.06.05"]
[EventType "swiss"]
[EventRounds "9"]
[EventCountry "GER"]
[SourceTitle "playchess.com"]
[Source "ChessBase"]
[SourceQuality "1"]
[TimeControl "40/4500+30:900+30"]

1. d4 {[%emt 0:00:00]} d5 {[%emt 0:00:00]} 2. Bg5 {[%emt 0:00:00]} c5 {[%emt 0:00:00]} 3. c3 {[%emt 0:00:00]} Qb6 {[%emt 0:00:00]} 4. Qb3 {[%emt 0:00:00]} c4 {[%emt 0:00:00]} 5. Qxb6 {[%emt 0:00:00]} axb6 {[%emt 0:00:00]} 6. e4 {[%emt 0:02:25]} e6 {[%emt 0:00:00]} 7. e5 $15 {[%emt 0:12:21]} (7. g3 $11 {might be stronger.}) 7... Nc6 {[%emt 0:00:00]} 8. Nf3 {[%emt 0:06:20]} b5 {[%emt 0:00:00]} 9. Be2 {[%emt 0:09:47]} b4 {[%emt 0:05:27]} 10. O-O {[%emt 0:01:13]} Nge7 {[%emt 0:01:02]} 11. a3 {[%emt 0:13:53]} h6 {[%emt 0:02:12]} 12. Be3 {[%emt 0:03:11]} Ng6 {[%emt 0:04:16]} 13. cxb4 {[%emt 0:06:22]} Nxb4 {[%emt 0:05:18]} 14. Nc3 {[%emt 0:01:26]} Nc6 {[%emt 0:01:50]} 15. Bd1 {[%emt 0:04:27]} Na5 {[%emt 0:02:56]} 16. Bc2 {[%emt 0:02:02]} Be7 {[%emt 0:02:42]} 17. Nd2 {[%emt 0:01:01]} Bd7 {[%emt 0:01:43]} 18. Rfb1 {[%emt 0:02:33]} O-O {[%emt 0:01:08]} 19. Ba4 {[%emt 0:00:53]} Bxa4 {[%emt 0:03:31]} 20. Nxa4 {[%emt 0:00:07]} f6 {[%emt 0:03:46]} 21. f4 {[%emt 0:01:33]} fxe5 {[%emt 0:00:51]} 22. fxe5 {[%emt 0:00:20]} Nf4 {[%emt 0:01:30]} 23. Rf1 {[%emt 0:01:01]} Nd3 {[%emt 0:03:05]} 24. Rab1 {[%emt 0:00:29]} Rxf1+ {[%emt 0:01:25]} 25. Kxf1 {[%emt 0:00:10]} b5 {[%emt 0:03:25]} 26. Nc3 {[%emt 0:00:44]} b4 {[%emt 0:01:54]} 27. axb4 {[%emt 0:00:31]} Bxb4 {[%emt 0:00:26]} 28. Nb5 {[%emt 0:01:27]} Rb8 {[%emt 0:07:33]} 29. Nc3 {[%emt 0:01:14]} Rb7 {[%emt 0:04:31]} 30. Na2 {[%emt 0:01:04]} Be7 {[%emt 0:10:41]} 31. Ke2 {[%emt 0:04:46]} Rxb2 {[%emt 0:03:17]} 32. Rxb2 {[%emt 0:00:12]} Nxb2 {[%emt 0:00:06]} 33. Nb1 {[%emt 0:00:44]} Na4 {[%emt 0:01:57]} 34. Nac3 {[%emt 0:03:22]} Nxc3+ {[%emt 0:00:19]} 35. Nxc3 {[%emt 0:00:04]} Nb3 {[%emt 0:00:38]} 36. Bd2 {[%emt 0:01:03]} Nxd2 {[%emt 0:02:41]} 37. Kxd2 {[%emt 0:00:14]} Bb4 {[%emt 0:00:05]} 38. Kc2 {[%emt 0:00:19]} Bxc3 {[%emt 0:00:51]} 39. Kxc3 {[%emt 0:00:10]} Kf7 {[%emt 0:00:05]} 40. Kd2 {[%emt 0:02:53]} Kg6 {[%emt 0:00:29]} 41. Ke2 {[%emt 0:19:33]} Kf5 {[%emt 0:15:24]} 42. Kf3 {[%emt 0:00:48]} h5 {[%emt 0:00:25]} 43. h3 {[%emt 0:00:00]} h4 {[%emt 0:00:00]} 44. Ke3 {[%emt 0:00:00]} c3 {[%emt 0:00:00]} 45. Kd3 {[%emt 0:00:00]} c2 {[%emt 0:00:00]} 46. Kxc2 {[%emt 0:00:00]} Ke4 {[%emt 0:00:00]} 47. Kc3 {[%emt 0:00:00]} Ke3 {[%emt 0:00:00]} 0-1

[Event "GER-ch Youth-U14 2022"]
[Site "Willingen"]
[Date "2022.06.05"]
[Round "2.17"]
[White "Vihan, Shourya"]
[Black "Winkler, Yonathan"]
[Result "0-1"]
[ECO "D10"]
[WhiteElo "1385"]
[BlackElo "1699"]
[Annotator "NA RC COMBH"]
[PlyCount "156"]
[EventDate "2022.06.05"]
[EventType "swiss"]
[EventRounds "9"]
[EventCountry "GER"]
[SourceTitle "playchess.com"]
[Source "ChessBase"]
[SourceQuality "1"]
[TimeControl "40/4500+30:900+30"]

1. d4 {[%emt 0:00:00]} d5 {[%emt 0:00:00]} 2. c4 {[%emt 0:00:00]} c6 {[%emt 0:00:00]} 3. Nc3 {[%emt 0:00:00]} Nf6 {[%emt 0:00:00]} 4. cxd5 {[%emt 0:00:00]} cxd5 {[%emt 0:00:00]} 5. Bf4 {[%emt 0:00:00]} e6 {[%emt 0:00:00]} 6. e3 {[%emt 0:00:00]} Be7 {[%emt 0:00:00]} 7. Bd3 {[%emt 0:00:00]} Nc6 {[%emt 0:00:00]} 8. Rc1 {[%emt 0:00:00]} O-O {[%emt 0:00:00]} 9. h3 {[%emt 0:00:00]} a6 {[%emt 0:03:24]} 10. Nf3 {[%emt 0:00:00]} Re8 {[%emt 0:02:00]} 11. O-O {[%emt 0:00:00]} Bd6 {[%emt 0:03:45]} 12. Ne5 {[%emt 0:01:18]} Bxe5 {[%emt 0:05:58]} 13. Bxe5 {[%emt 0:05:10]} Nxe5 {[%emt 0:00:18]} 14. dxe5 {[%emt 0:00:06]} Nd7 {[%emt 0:00:09]} 15. f4 {[%emt 0:00:37]} Qb6 {[%emt 0:01:29]} 16. Qe2 {[%emt 0:02:30]} Nc5 {[%emt 0:05:40]} 17. Bb1 {[%emt 0:04:18]} Bd7 {[%emt 0:13:46]} 18. Qc2 {[%emt 0:07:01]} g6 {[%emt 0:00:29]} 19. h4 {[%emt 0:09:24]} Rac8 {[%emt 0:02:15]} 20. Qf2 {[%emt 0:04:13]} Bb5 {[%emt 0:06:07]} 21. Rfd1 {[%emt 0:04:10]} Red8 {[%emt 0:05:24]} 22. h5 {[%emt 0:10:32]} Na4 {[%emt 0:13:29]} 23. Kh2 {[%emt 0:07:16]} Nxc3 {[%emt 0:01:31]} 24. bxc3 {[%emt 0:01:21]} Rc7 {[%emt 0:02:19]} 25. Qh4 {[%emt 0:06:22]} Rdc8 {[%emt 0:00:35]} 26. Qf6 {[%emt 0:01:31]} Qc5 {[%emt 0:01:14]} 27. hxg6 {[%emt 0:00:56]} hxg6 {[%emt 0:00:19]} 28. e4 {[%emt 0:04:51]} dxe4 {[%emt 0:04:02]} 29. Bxe4 {[%emt 0:04:31]} Qe7 {[%emt 0:00:54]} 30. Qxe7 {[%emt 0:03:23]} Rxe7 {[%emt 0:00:09]} 31. Rd4 {[%emt 0:05:17]} Rec7 {[%emt 0:07:14]} 32. c4 {[%emt 0:00:49]} Bc6 {[%emt 0:00:05]} 33. Bd3 {[%emt 0:00:50]} Kf8 {[%emt 0:02:26]} 34. Kg3 {[%emt 0:00:42]} Ke7 {[%emt 0:00:33]} 35. Rh1 {[%emt 0:00:22]} Rd7 {[%emt 0:00:36]} 36. Rxd7+ {[%emt 0:00:25]} Bxd7 {[%emt 0:00:06]} 37. Kf2 {[%emt 0:01:39]} Rc5 {[%emt 0:01:02]} 38. Rb1 {[%emt 0:02:00]} Bc6 {[%emt 0:00:40]} 39. g3 {[%emt 0:01:00]} Ra5 {[%emt 0:00:30]} 40. Rb2 {[%emt 0:00:22]} Ra3 {[%emt 0:00:49]} 41. Ke2 {[%emt 0:17:20]} Kd7 {[%emt 0:19:32]} 42. g4 {[%emt 0:00:00]} Kc7 {[%emt 0:00:00]} 43. Ke3 {[%emt 0:00:00]} Bf3 {[%emt 0:00:00]} 44. Kxf3 {[%emt 0:00:00]} Rxd3+ {[%emt 0:00:00]} 45. Ke4 {[%emt 0:00:00]} Rg3 {[%emt 0:00:00]} 46. g5 {[%emt 0:00:00]} Rh3 {[%emt 0:00:00]} 47. Kd4 {[%emt 0:00:00]} Kc6 {[%emt 0:00:00]} 48. Ke4 {[%emt 0:00:00]} Rh1 {[%emt 0:00:00]} 49. Rd2 {[%emt 0:00:00]} Re1+ {[%emt 0:00:00]} 50. Kd4 {[%emt 0:00:00]} b6 {[%emt 0:00:00]} 51. Rh2 {[%emt 0:00:00]} Rd1+ {[%emt 0:00:00]} 52. Ke4 {[%emt 0:00:00]} Kc5 {[%emt 0:00:00]} 53. Rc2 {[%emt 0:00:00]} Rd4+ {[%emt 0:00:00]} 54. Ke3 {[%emt 0:00:00]} Rxc4 {[%emt 0:00:00]} 55. Rd2 {[%emt 0:00:00]} Kc6 {[%emt 0:00:00]} 56. Rd8 {[%emt 0:00:00]} Kb7 {[%emt 0:00:00]} 57. Rd7+ {[%emt 0:00:00]} Rc7 {[%emt 0:00:00]} 58. Rd6 {[%emt 0:00:00]} b5 {[%emt 0:00:00]} 59. f5 {[%emt 0:00:31]} exf5 {[%emt 0:00:00]} 60. e6 {[%emt 0:00:12]} Re7 {[%emt 0:00:00]} 61. Kf4 {[%emt 0:01:09]} Rxe6 {[%emt 0:00:00]} 62. Rd7+ {[%emt 0:00:19]} Kc8 {[%emt 0:00:00]} 63. Rxf7 {[%emt 0:00:09]} Re4+ {[%emt 0:00:00]} 64. Kf3 {[%emt 0:00:08]} Rg4 {[%emt 0:00:00]} 65. Rf8+ {[%emt 0:00:18]} Kd7 {[%emt 0:00:53]} 66. Rf7+ {[%emt 0:00:05]} Ke8 {[%emt 0:00:06]} 67. Rf6 {[%emt 0:00:43]} Rxg5 {[%emt 0:00:06]} 68. Rxa6 {[%emt 0:00:34]} b4 {[%emt 0:01:04]} 69. Kf4 {[%emt 0:00:17]} Rg1 {[%emt 0:02:46]} 70. Ke5 {[%emt 0:02:13]} Kd7 {[%emt 0:01:47]} 71. Rb6 {[%emt 0:00:18]} Rg4 {[%emt 0:00:48]} 72. Kd5 {[%emt 0:00:40]} Kc7 {[%emt 0:01:30]} 73. Ra6 {[%emt 0:01:23]} Kb7 {[%emt 0:01:19]} 74. Rf6 {[%emt 0:00:07]} Kc7 {[%emt 0:01:22]} 75. Rc6+ {[%emt 0:00:37]} Kd7 {[%emt 0:00:15]} 76. Ra6 {[%emt 0:00:06]} Ke7 {[%emt 0:00:07]} 77. Ke5 {[%emt 0:00:47]} Re4+ {[%emt 0:00:06]} 78. Kd5 {[%emt 0:00:06]} Kf7 {[%emt 0:00:05]} 0-1

[Event "GER-ch Youth-U14 2022"]
[Site "Willingen"]
[Date "2022.06.05"]
[Round "2.19"]
[White "Weber, Nikita"]
[Black "Mueller, Maximilian"]
[Result "0-1"]
[ECO "A10"]
[WhiteElo "1264"]
[BlackElo "2299"]
[Annotator "TA"]
[PlyCount "108"]
[EventDate "2022.06.05"]
[EventType "swiss"]
[EventRounds "9"]
[EventCountry "GER"]
[SourceTitle "playchess.com"]
[Source "ChessBase"]
[SourceQuality "1"]
[TimeControl "40/4500+30:900+30"]

{[%evp 12,108,6,0,30,31,31,31,33,23,27,29,44,39,47,41,44,40,37,22,22,4,4,4,27,-36,8,-47,-62,-90,0,-70,79,83,74,79,77,90,215,225,285,267,287,277,337,226,266,168,175,191,404,380,397,383,370,-504,-503,-829,-804,-860,-831,-855,-812,-1001,-794,-672,-581,-561,-304,-1870,-1799,-29978,-29979,-29995,-29993,-29993,-29993,-29993,-6190,-5998,-5914,-5397,-5577,-2090,-1702,-29972,-29973,-29973,-29968,-29990,-29991,-29993,-29994,-29994,-29995,-29999,-29998,-29998,-29999]} 1. c4 {[%emt 0:00:00]} g6 {[%emt 0:00:00]} 2. Nc3 {[%emt 0:00:00]} Bg7 {[%emt 0:00:00]} 3. g3 {[%emt 0:00:00]} d6 {[%emt 0:00:00]} 4. Bg2 {[%emt 0:00:00]} e5 {[%emt 0:00:00]} 5. e4 {[%emt 0:00:00]} Nc6 {[%emt 0:00:00]} 6. Nge2 {[%emt 0:00:00]} h5 {[%emt 0:00:00]} 7. h4 {[%emt 0:00:00]} Nh6 {[%emt 0:00:00] A25: English Opening vs King's Indian with ...Nc6 but without early d3.} 8. d3 {[%emt 0:00:00]} O-O {[%emt 0:00:00]} 9. O-O {[%emt 0:00:00]} Kh7 {[%emt 0:00:00] White is slightly better.} 10. Nd5 {[%emt 0:00:00]} Bg4 {[%emt 0:00:00]} 11. f3 {[%emt 0:00:00] aiming for Bxh6.} Be6 {[%emt 0:00:00]} 12. Bg5 {[%emt 0:00:00]} f6 {[%emt 0:00:00]} 13. Be3 {[%emt 0:00:00]} Qd7 {[%emt 0:07:27]} 14. Qd2 {[%emt 0:00:00]} Nd8 {[%emt 0:10:11] [#]} 15. Qa5 $146 {[%emt 0:07:33]} ({Predecessor:} 15. b3 c6 16. Ndc3 c5 17. Nd5 Nc6 18. Rab1 Rab8 19. a3 Nd4 20. b4 b6 21. bxc5 Bxd5 22. Bxd4 {½-½ (56) Titan,M (2146)-Srebrnic,A (2197) Ljubljana 2013}) 15... b6 {[%emt 0:04:43]} 16. Qe1 {[%emt 0:03:18]} c6 {[%emt 0:00:20]} 17. Ndc3 {[%emt 0:00:56]} Ndf7 {[%emt 0:04:36]} 18. b4 {[%emt 0:03:12]} ({White should play} 18. Rd1 $11) 18... Rab8 {[%emt 0:01:35]} 19. Qf2 {[%emt 0:01:49]} (19. b5 $11) 19... f5 $15 {[%emt 0:11:49]} 20. Rab1 {[%emt 0:01:19]} Nh8 {[%emt 0:06:10]} ({Black should try} 20... fxe4 $17 21. Bxh6 Kxh6 22. Nxe4 d5 23. cxd5 cxd5 24. Qe3+ Kh7 25. Ng5+ Nxg5 26. hxg5 d4) 21. Bh3 {[%emt 0:02:07] [#]} ({White has to play} 21. b5 $11) 21... f4 {[%emt 0:03:47]} (21... Ng4 $1 $15 {stays ahead.} 22. Bxg4 (22. fxg4 fxg4 23. Qe1 gxh3 $17) 22... fxg4) 22. Bxe6 $16 {[%emt 0:00:42]} Qxe6 {[%emt 0:00:05]} 23. gxf4 {[%emt 0:00:15]} exf4 {[%emt 0:00:11]} 24. Bxf4 {[%emt 0:00:54]} Qd7 {[%emt 0:07:34]} (24... Bxc3 $16 25. Bxh6 Kxh6) 25. Qg3 $18 {[%emt 0:01:19]} Rf6 {[%emt 0:03:31]} 26. d4 {[%emt 0:01:50][%cal Bd3d4,Bd4d5,Bd5c6][%mdl 32]} Rbf8 {[%emt 0:01:47][%cal Of6f4] ...Rxf4! is the strong threat.} 27. Rbd1 {[%emt 0:03:31]} a5 {[%emt 0:02:33]} 28. bxa5 {[%emt 0:00:52]} bxa5 {[%emt 0:00:06]} 29. Qh2 {[%emt 0:01:34]} Qe6 {[%emt 0:07:19]} 30. d5 {[%emt 0:01:05]} Qe7 {[%emt 0:00:43]} (30... Qc8 {was necessary.} 31. Bxd6 Rxf3) 31. dxc6 {[%emt 0:02:38]} Rxf4 {[%emt 0:00:48]} 32. Nxf4 {[%emt 0:00:27]} Bxc3 {[%emt 0:00:05]} 33. Rd3 $4 {[%emt 0:00:46][%mdl 8192]} (33. Nd5 $18 Qa7+ 34. Qf2) 33... Be5 $19 {[%emt 0:00:14]} 34. Qf2 {[%emt 0:00:42]} (34. Qh3 $142 Bxf4 35. Rb3 Qa7+ 36. Kg2) 34... Rxf4 {[%emt 0:00:27]} 35. Rb1 {[%emt 0:01:21]} N8f7 {[%emt 0:02:17]} ({Less strong is} 35... Rxh4 36. Rb7 Qxb7 37. cxb7 $18) 36. Rb7 {[%emt 0:01:04]} Qe6 {[%emt 0:00:05]} 37. c7 {[%emt 0:03:52]} Qc8 {[%emt 0:02:57]} 38. Ra7 {[%emt 0:01:21]} d5 {[%emt 0:02:55]} 39. Rxd5 {[%emt 0:05:01] Hoping for Rd8.} Ng4 {[%emt 0:03:20][%cal Bh6g4,Bg4h2,Bh2f1][%mdl 32]} 40. Qg2 {[%emt 0:05:22] [#]} (40. Rd8 Qxc7 41. Rxc7 Bxc7 42. Qa7 Bxd8 43. fxg4) 40... Bxc7 $1 {[%emt 0:00:32] ( -> ...Bb6+)} 41. Qb2 {[%emt 0:19:04] Against Bb6+} (41. c5 Nge5) 41... Rxf3 {[%emt 0:16:27]} 42. Qb7 {[%emt 0:01:07]} Rg3+ {[%emt 0:03:13]} 43. Kf1 {[%emt 0:00:52]} Nh2+ {[%emt 0:00:15]} 44. Ke1 {[%emt 0:00:22] [#]} Re3+ {[%emt 0:03:32]} (44... Qh3 $142 $1 45. Qb3 Qf1+ 46. Kd2 Bf4+ 47. Qe3 Qf2+ 48. Kc3 Rxe3+ 49. Rd3 Rxd3+ 50. Kxd3 Qd2#) 45. Kd2 {[%emt 0:00:12]} Nf1+ {[%emt 0:00:11]} 46. Kc1 {[%emt 0:00:19]} Re1+ {[%emt 0:00:00]} 47. Kb2 {[%emt 0:00:00]} Qh8+ {[%emt 0:00:00]} 48. e5 {[%emt 0:00:00]} Rxe5 {[%emt 0:00:00] Black mates.} 49. Rxe5 {[%emt 0:00:00]} Qxe5+ {[%emt 0:00:00]} 50. Kc2 {[%emt 0:00:00]} Qe2+ {[%emt 0:00:00]} 51. Kb3 {[%emt 0:00:00]} Nd2+ {[%emt 0:00:00]} 52. Kc2 {[%emt 0:00:00]} Nxc4+ {[%emt 0:00:00]} 53. Kb1 {[%emt 0:00:00]} Na3+ {[%emt 0:00:00]} 54. Ka1 {[%emt 0:00:00]} Be5+ {[%emt 0:00:00] Quite a comeback for Black.  Weighted Error Value: White=0.82/Black=0.47} 0-1

[Event "GER-ch Youth-U14 2022"]
[Site "Willingen"]
[Date "2022.06.05"]
[Round "2.20"]
[White "Torosyan, Bagrat"]
[Black "Goepfert, Gregor"]
[Result "1-0"]
[ECO "C54"]
[WhiteElo "1683"]
[BlackElo "1446"]
[Annotator "NA RC COMBH"]
[PlyCount "43"]
[EventDate "2022.06.05"]
[EventType "swiss"]
[EventRounds "9"]
[EventCountry "GER"]
[SourceTitle "playchess.com"]
[Source "ChessBase"]
[SourceQuality "1"]
[TimeControl "40/4500+30:900+30"]

1. e4 {[%emt 0:00:00]} e5 {[%emt 0:00:00]} 2. Nf3 {[%emt 0:00:00]} Nc6 {[%emt 0:00:00]} 3. Bc4 {[%emt 0:00:00]} Bc5 {[%emt 0:00:00]} 4. c3 {[%emt 0:00:00]} Nf6 {[%emt 0:00:00]} 5. d3 {[%emt 0:00:00]} d6 {[%emt 0:00:00]} 6. O-O {[%emt 0:00:00]} a6 {[%emt 0:00:00]} 7. Bb3 {[%emt 0:00:00]} Ba7 {[%emt 0:00:00]} 8. Nbd2 {[%emt 0:00:00]} O-O {[%emt 0:00:00]} 9. h3 {[%emt 0:00:00]} Be6 {[%emt 0:00:00]} 10. Bc2 {[%emt 0:00:00]} Re8 {[%emt 0:00:00]} 11. Re1 {[%emt 0:00:00]} h6 {[%emt 0:00:00]} 12. Nf1 {[%emt 0:00:00]} Qd7 {[%emt 0:00:00]} 13. Ng3 {[%emt 0:00:00]} Rad8 {[%emt 0:00:00]} 14. Nh4 {[%emt 0:00:00]} Qc8 {[%emt 0:00:00]} 15. Qf3 {[%emt 0:00:00]} Nh7 {[%emt 0:03:46]} 16. Nhf5 {[%emt 0:06:20]} Ne7 {[%emt 0:05:09]} 17. Qg4 {[%emt 0:04:18]} Ng6 {[%emt 0:03:12]} 18. Nh5 {[%emt 0:02:26]} Nf6 {[%emt 0:07:18]} 19. Nxf6+ {[%emt 0:01:32]} gxf6 {[%emt 0:00:13]} 20. Bxh6 {[%emt 0:00:36]} Kh7 21. Qh5 Kg8 22. Qg4 1-0

[Event "GER-ch Youth-U14 2022"]
[Site "Willingen"]
[Date "2022.06.05"]
[Round "2.21"]
[White "Miller, Elias"]
[Black "Fruth, David"]
[Result "0-1"]
[ECO "E80"]
[WhiteElo "1548"]
[BlackElo "1648"]
[Annotator "NA RC COMBH"]
[PlyCount "74"]
[EventDate "2022.06.05"]
[EventType "swiss"]
[EventRounds "9"]
[EventCountry "GER"]
[SourceTitle "playchess.com"]
[Source "ChessBase"]
[SourceQuality "1"]
[TimeControl "40/4500+30:900+30"]

1. d4 {[%emt 0:00:00]} Nf6 {[%emt 0:00:00]} 2. c4 {[%emt 0:00:00]} g6 {[%emt 0:00:00]} 3. Nc3 {[%emt 0:00:00]} Bg7 {[%emt 0:00:00]} 4. e4 {[%emt 0:00:00]} d6 {[%emt 0:00:00]} 5. f3 {[%emt 0:00:00]} Nbd7 {[%emt 0:00:00]} 6. Bg5 {[%emt 0:00:00]} c6 {[%emt 0:00:00]} 7. Nh3 {[%emt 0:00:00]} Nb6 {[%emt 0:00:00]} 8. Nf2 {[%emt 0:00:00]} Nfd7 {[%emt 0:00:00]} 9. Qd2 {[%emt 0:00:00]} c5 {[%emt 0:00:00]} 10. d5 {[%emt 0:00:00]} Ne5 {[%emt 0:00:00]} 11. b3 {[%emt 0:00:00]} h6 {[%emt 0:00:00]} 12. Be3 {[%emt 0:00:00]} e6 {[%emt 0:00:02]} 13. O-O-O {[%emt 0:01:00]} Qf6 {[%emt 0:03:45]} 14. Kc2 {[%emt 0:02:30]} O-O {[%emt 0:01:32]} 15. a4 {[%emt 0:01:36]} exd5 {[%emt 0:01:20]} 16. exd5 {[%emt 0:00:35]} Bf5+ {[%emt 0:02:41]} 17. Bd3 {[%emt 0:03:17]} Bxd3+ {[%emt 0:00:30]} 18. Nxd3 {[%emt 0:00:10]} Nexc4 {[%emt 0:02:39]} 19. bxc4 {[%emt 0:00:26]} Nxc4 {[%emt 0:00:06]} 20. Ne4 {[%emt 0:01:57]} Qe7 {[%emt 0:02:16]} 21. Qc1 {[%emt 0:02:02]} f5 {[%emt 0:00:13]} 22. Nd2 {[%emt 0:01:47]} Nxe3+ {[%emt 0:00:17]} 23. Kb1 {[%emt 0:02:08]} Nxd1 {[%emt 0:01:43]} 24. Rxd1 {[%emt 0:00:34]} b5 {[%emt 0:01:01]} 25. axb5 {[%emt 0:01:06]} Rfb8 {[%emt 0:00:04]} 26. Kc2 {[%emt 0:00:27]} Rxb5 {[%emt 0:00:14]} 27. Nc4 {[%emt 0:01:03]} Qf6 {[%emt 0:00:19]} 28. Qa3 {[%emt 0:01:39]} Rab8 {[%emt 0:00:10]} 29. Kd2 {[%emt 0:05:23]} Rb3 {[%emt 0:00:21]} 30. Qc1 {[%emt 0:01:18]} Qg5+ {[%emt 0:01:27]} 31. Ne3 {[%emt 0:01:04]} f4 {[%emt 0:00:34]} 32. Ng4 {[%emt 0:02:48]} Rb2+ {[%emt 0:01:06]} 33. Nxb2 {[%emt 0:02:42]} Rxb2+ {[%emt 0:00:01]} 34. Ke1 {[%emt 0:02:55]} Qe7+ {[%emt 0:00:12]} 35. Ne3 {[%emt 0:01:44]} fxe3 {[%emt 0:00:16]} 36. Qc4 {[%emt 0:00:54]} e2 {[%emt 0:01:29]} 37. Rc1 {[%emt 0:00:57]} Qe3 {[%emt 0:00:17]} 0-1

[Event "GER-ch Youth-U14 2022"]
[Site "Willingen"]
[Date "2022.06.05"]
[Round "2.22"]
[White "Schwan, Aaron"]
[Black "Detjen, Mattes"]
[Result "1-0"]
[ECO "C54"]
[WhiteElo "1671"]
[BlackElo "1098"]
[Annotator "NA RC COMBH"]
[PlyCount "67"]
[EventDate "2022.06.05"]
[EventType "swiss"]
[EventRounds "9"]
[EventCountry "GER"]
[SourceTitle "playchess.com"]
[Source "ChessBase"]
[SourceQuality "1"]
[TimeControl "40/4500+30:900+30"]

1. e4 {[%emt 0:00:00]} e5 {[%emt 0:00:00]} 2. Nf3 {[%emt 0:00:00]} Nc6 {[%emt 0:00:00]} 3. Bc4 {[%emt 0:00:00]} Bc5 {[%emt 0:00:00]} 4. c3 {[%emt 0:00:00]} Nf6 {[%emt 0:00:00]} 5. d3 {[%emt 0:00:00]} O-O {[%emt 0:00:00]} 6. Bb3 {[%emt 0:00:00]} d6 {[%emt 0:00:00]} 7. Nbd2 {[%emt 0:00:00]} Bg4 {[%emt 0:00:00]} 8. h3 {[%emt 0:00:00]} Be6 {[%emt 0:01:47]} 9. Nf1 {[%emt 0:00:00]} Qd7 {[%emt 0:03:53]} 10. Ng3 {[%emt 0:00:00]} d5 {[%emt 0:03:34]} 11. Qe2 {[%emt 0:00:00]} dxe4 {[%emt 0:04:23]} 12. dxe4 {[%emt 0:00:00]} Na5 {[%emt 0:02:48]} 13. Bxe6 {[%emt 0:00:00]} Qxe6 {[%emt 0:02:39]} 14. b4 {[%emt 0:00:00]} Bxf2+ {[%emt 0:04:06]} 15. Qxf2 {[%emt 0:00:00]} Nc6 {[%emt 0:00:32]} 16. O-O {[%emt 0:00:00]} Qc4 {[%emt 0:02:49]} 17. Qe3 {[%emt 0:08:38]} Rad8 {[%emt 0:02:39]} 18. Bd2 {[%emt 0:03:05]} Rd3 {[%emt 0:02:46]} 19. Qe2 {[%emt 0:00:32]} b5 {[%emt 0:02:44]} 20. a4 {[%emt 0:03:33]} a6 {[%emt 0:03:14]} 21. axb5 {[%emt 0:00:22]} axb5 {[%emt 0:00:24]} 22. Ra6 {[%emt 0:00:50]} Rfd8 {[%emt 0:06:21]} 23. Kh1 {[%emt 0:09:49]} Nb8 {[%emt 0:13:08]} 24. Nxe5 {[%emt 0:03:23]} Rxd2 {[%emt 0:02:48]} 25. Qxd2 {[%emt 0:01:48]} Rxd2 {[%emt 0:03:09]} 26. Nxc4 {[%emt 0:00:02]} bxc4 {[%emt 0:01:33]} 27. Ra8 {[%emt 0:00:39]} Rd8 {[%emt 0:00:06]} 28. Ra7 {[%emt 0:02:12]} Rc8 {[%emt 0:02:56]} 29. Rd1 {[%emt 0:01:03]} h6 {[%emt 0:01:48]} 30. e5 {[%emt 0:02:27]} Ne8 {[%emt 0:02:39]} 31. Ra8 {[%emt 0:01:13]} Kf8 {[%emt 0:02:44]} 32. Ne4 {[%emt 0:01:33]} Ke7 {[%emt 0:02:02]} 33. Nc5 {[%emt 0:00:16]} f6 {[%emt 0:01:31]} 34. Na6 {[%emt 0:00:30]} 1-0